Cogmind - Beta 13 @@@ ROGUE MODE // 2024.03.31 @ 15:00:31 Player: twinGeminis Result: Destroyed by Y-45 Defender with Heavy Assault Rifle Performance ------------- Evolutions (1) 500 Regions Visited (3) 600 Robots Destroyed (33) 165 Value Destroyed (704) 704 Prototype IDs (4) 80 Alien Tech Used (0) 0 Bonus (88) 88 TOTAL SCORE: 2137 Bonus ------- Follower Combat Kills 88 Cogmind --------- Core Integrity 0/400 Matter 274/300 Energy 79/100 System Corruption 0% Temperature Cool (0) Movement Core (150) Ox2 Location -9/Materials Parts ------- > --- POWER (2) -------- (None) > --- PROPULSION (2) --- (None) > --- UTILITY (3) ------ Large Storage Unit Weight Redist. System Utility Shielding > --- WEAPON (2) ------- Makeshift Hammer > --- INVENTORY (15) --- Heat Sink Cooling System Small Battery (100) Targeting Computer Peak State ------------ > --- POWER ------------ Light Ion Engine Light Nuclear Core > --- PROPULSION ------- Carbon-fiber Leg Improved Hover Unit > --- UTILITY ---------- Large Storage Unit Medium Matter Pod Utility Shielding > --- WEAPON ----------- Assault Rifle Makeshift Hammer > --- INVENTORY -------- Heat Sink Small Battery Targeting Computer Assault Rifle [Rating: 17] Favorites ----------- Power Ion Engine Engine Ion Engine Power Core Light Nuclear Core Propulsion Light Treads Treads Light Treads Leg Aluminum Leg Hover Unit Improved Hover Unit Utility Medium Matter Pod Device Improved Terrain Scanner Storage Medium Matter Pod Protection Utility Shielding Weapon Assault Rifle Energy Gun Medium Laser Ballistic Gun Assault Rifle Special Weapon Mining Laser Impact Weapon Makeshift Hammer Build | -11 -10 -10 -9 ------- Run | Yrd Mat Min Mat Slots Evolved 2 | . . . 2 Power 1 | . . . 1 Propulsion . | . . . . Utility 1 | . . . 1 Weapon . | . . . . Parts Attached 47 | 10 12 8 17 Power 7 | 2 1 1 3 Engine 6 | 2 1 1 2 Core 1 | . . . 1 Reactor . | . . . . Propulsion 14 | 2 4 4 4 Treads 4 | 2 . 2 . Leg 7 | . 4 2 1 Wheel . | . . . . Hover 3 | . . . 3 Flight . | . . . . Utility 11 | 3 4 1 3 Device 5 | 2 2 . 1 Storage 5 | 1 2 1 1 Processor . | . . . . Hackware . | . . . . Protection 1 | . . . 1 Artifact . | . . . . Weapon 15 | 3 3 2 7 Energy Gun 3 | . 1 1 1 Energy Cannon . | . . . . Ballistic Gun 6 | 2 2 . 2 Ballistic Cannon . | . . . . Launcher . | . . . . Special Weapon 3 | 1 . . 2 Impact Weapon 3 | . . 1 2 Slashing Weapon . | . . . . Piercing Weapon . | . . . . Special Melee Weapon . | . . . . Unidentified Prototypes . | . . . . Parts Lost 20 | . 4 1 15 Power 4 | . . . 4 Propulsion 6 | . 1 . 5 Utility 3 | . 1 1 1 Weapon 7 | . 2 . 5 Highest Loss Streak 8 | . 3 1 8 To Critical Strikes . | . . . . Average Slot Usage (%) 96 | . 97 100 85 Engine 14 | . 14 14 14 Core 1 | . . . 6 Treads 5 | . 14 2 7 Leg 18 | . 12 25 5 Device 3 | . 14 1 . Storage 22 | . 12 26 21 Protection 2 | . . . 11 Energy Gun 2 | . 2 1 3 Ballistic Gun 13 | . 25 12 5 Impact Weapon 10 | . . 13 8 Naked Turns . | . . . . Heaviest Build 36 | 12 18 22 36 Greatest Support 40 | 40 40 40 40 Greatest Overweight (x) 11 | . 1 1 11 Average Overweight (x) . | . . . 1 Largest Inventory Capacity 15 | 5 10 10 15 Average Capacity 8 | 5 7 10 14 Most Carried 10 | 5 7 10 9 Average Carried 5 | 3 5 7 5 Final Capacity 15 | 5 10 10 15 Final Carried 10 | 5 7 10 4 Class Distribution -------------------- 51% | Scavenger-Mutant 48% | Mutant Dominant Class ---------------- Mutant | -10/Materials Scavenger-Mutant | -10/Mines Scavenger-Mutant | -9/Materials Resources | -11 -10 -10 -9 ----------- Run | Yrd Mat Min Mat Matter Collected 1083 | 452 453 108 70 Remotely . | . . . . Salvage Created 1045 | 193 480 92 280 Parts 53 | 11 34 3 5 Haulers Intercepted . | . . . . Recyclers Shooed 1 | 1 . . . Parts Field Recycled . | . . . . Retrieved Matter . | . . . . Parts Self-Destructed . | . . . . Prevented . | . . . . Kills | -11 -10 -10 -9 ------- Run | Yrd Mat Min Mat Combat Hostiles Destroyed 21 | . 13 2 6 Melee 2 | . . . 2 Guns 18 | . 13 2 3 Classes Destroyed 9 | 3 3 1 2 Worker 3 | 1 . 2 . Builder 1 | . . 1 . Tunneler 5 | 4 . 1 . Recycler 2 | 1 . . 1 Watcher 1 | . 1 . . Swarmer 5 | . 3 2 . Grunt 14 | . 10 . 4 Brawler 1 | . . . 1 Sentry 1 | . . . 1 Best Kill Streak 8 | 1 8 4 2 Combat Bots Only 8 | . 8 2 2 Max Kills in Single Turn 1 | 1 1 1 1 Gunslinging . | . . . . Exploded . | . . . . Melee 1 | . . . 1 Uniques/NPCs Destroyed . | . . . . Combat | -11 -10 -10 -9 -------- Run | Yrd Mat Min Mat Hostile Shots Fired 290 | . 100 44 146 Missed 77 | . 28 12 37 Damage Taken 2534 | . 791 292 1451 Core 551 | . 117 23 411 Absorbed by Shields . | . . . . Redirected to Shielding 26 | . . . 26 Core Remaining (%) 72 | 100 . 44 . Volleys Fired 117 | 23 57 12 25 Largest 2 | 2 2 1 2 Hottest 156 | 120 85 20 156 Shots Fired 210 | 44 113 12 41 Gun 204 | 43 113 12 36 Cannon . | . . . . Launcher . | . . . . Special 6 | 1 . . 5 Kinetic 186 | 43 106 12 25 Thermal 24 | 1 7 . 16 Explosive . | . . . . Electromagnetic . | . . . . Robot Hit Streak 11 | 5 8 9 11 Robot Miss Streak 6 | 6 4 1 2 Penetration Max . | . . . . Secondary Targets 1 | . . . 1 Max Gunslinging Chain 1 | . . . 1 Shots Hit Robots 143 | 18 76 12 37 Core Hits 46 | 7 24 3 12 Critical Kills 1 | 1 . . . Critical Parts Destroyed 3 | . . 2 1 Critical Strikes 5 | 1 . 2 2 Burn 1 | . . . 1 Destroy 1 | 1 . . . Smash 3 | . . 2 1 Melee Attacks 12 | . . 4 8 Impact 12 | . . 4 8 Slashing . | . . . . Piercing . | . . . . Sneak Attacks 5 | . . 4 1 Combat Hostiles . | . . . . Follow-up Attacks . | . . . . Damage Inflicted 2448 | 218 1029 456 745 Guns 1710 | 218 1029 63 400 Cannons . | . . . . Explosions . | . . . . Melee 683 | . . 393 290 Ramming . | . . . . Kinetic 1454 | 218 917 63 256 Thermal 311 | . 112 . 199 Explosive . | . . . . Electromagnetic . | . . . . Impact 683 | . . 393 290 Slashing . | . . . . Piercing . | . . . . Highest Corruption . | . . . . Average Corruption . | . . . . Corruption Purged . | . . . . Corruption Blocked . | . . . . Overload Shots . | . . . . Overflow Damage 421 | . . 313 108 Projectiles . | . . . . Explosions . | . . . . Melee 421 | . . 313 108 Knockbacks . | . . . . Impact . | . . . . Kinetic . | . . . . Secondary . | . . . . Self-Inflicted Damage . | . . . . Shots . | . . . . Rammed . | . . . . Targets Rammed 1 | . 1 . . Kicked 1 | . 1 . . Crushed . | . . . . Highest Temperature 517 | 20 190 . 517 Average Temperature 142 | 10 58 . 189 Received Heat Transfer 1170 | . 390 39 741 Effects 9 | . . . 9 Shutdowns 6 | . . . 6 Short Circuit 1 | . . . 1 Damage (major) 2 | . . . 2 Siege Activations . | . . . . Robots Corrupted . | . . . . Combat Hostiles . | . . . . Parts Fried 8 | . . 6 2 Impact Corruptions 9 | . . 7 2 Robots Melted 1 | . . . 1 Combat Hostiles 1 | . . . 1 Parts Melted 5 | . . . 5 Heat Transferred 1030 | . 259 . 771 Parts Sabotaged . | . . . . Parts Stolen . | . . . . Parts Stripped . | . . . . Power Chain Reactions . | . . . . Alert | -11 -10 -10 -9 ------- Run | Yrd Mat Min Mat Peak Influence 364 | 20 364 253 55 Initial 141 | . . 141 . Average 65 | 3 207 101 30 Maximum Alert Level 1 | . 1 1 . Low Security (%) 87 | 100 40 84 100 Level 1 12 | . 59 15 . Level 2 . | . . . . Level 3 . | . . . . Level 4 . | . . . . Level 5 . | . . . . High Security . | . . . . Max Security . | . . . . Squads Dispatched 4 | . 4 . . Investigation 2 | . 2 . . Extermination . | . . . . Reinforcement 2 | . 2 . . Assault . | . . . . Garrison . | . . . . Intercept . | . . . . Searches Triggered . | . . . . Construction Impeded . | . . . . Haulers Reinforced . | . . . . Active Scanning Responses . | . . . . Cargo Convoy Interrupts . | . . . . Stealth | -11 -10 -10 -9 --------- Run | Yrd Mat Min Mat Distress Signals 2 | . 2 . . Communications Jammed . | . . . . Distress Signals . | . . . . Times Spotted 44 | . 25 9 10 Peak Tracking Total 8 | . 8 3 6 Tactical Retreats 1 | . 1 . . Traps | -11 -10 -10 -9 ------- Run | Yrd Mat Min Mat Traps Triggered 1 | . 1 . . Indirectly . | . . . . Trap Hack Attempts . | . . . . Triggered . | . . . . Disarmed . | . . . . Reprogrammed . | . . . . Reused . | . . . . Traps Extracted . | . . . . Installed . | . . . . Triggered . | . . . . Most Traps Carried 3 | . . 3 . Machines | -11 -10 -10 -9 ---------- Run | Yrd Mat Min Mat Machines Disabled . | . . . . Max in Single Turn . | . . . . Machines Repaired . | . . . . Machines Dismantled . | . . . . Machines Sabotaged . | . . . . Overloaded Fab Kills . | . . . . Hacking | -11 -10 -10 -9 --------- Run | Yrd Mat Min Mat Machines Accessed 2 | . 1 . 1 Terminals 2 | . 1 . 1 Fabricators . | . . . . Repair Stations . | . . . . Recycling Units . | . . . . Scanalyzers . | . . . . Garrison Access . | . . . . Total Hacks 8 | . 6 . 2 Successful 4 | . 2 . 2 Failed 4 | . 4 . . Catastrophic . | . . . . Database Lockouts . | . . . . Manual . | . . . . Terminals 8 | . 6 . 2 Fabricators . | . . . . Repair Stations . | . . . . Recycling Units . | . . . . Scanalyzers . | . . . . Garrison Access . | . . . . Terminal Hacks 4 | . 2 . 2 Prototype ID Bank 2 | . 1 . 1 Branch Access Points 1 | . 1 . . Alert Level 1 | . . . 1 Fabricator Hacks . | . . . . Repair Station Hacks . | . . . . Recycling Unit Hacks . | . . . . Scanalyzer . | . . . . Garrison Access Hacks . | . . . . Unauthorized Hacks . | . . . . Terminals . | . . . . Fabricators . | . . . . Repair Stations . | . . . . Recycling Units . | . . . . Scanalyzers . | . . . . Garrison Access . | . . . . Data Cores Recovered . | . . . . Used . | . . . . Hacking Detections 1 | . 1 . . Full Trace Events 1 | . 1 . . Feedback Events . | . . . . Feedback Blocked . | . . . . Robot Schematics Acquired . | . . . . Robots Built . | . . . . Authchips . | . . . . Time . | . . . . Total Robot Build Rating . | . . . . Part Schematics Acquired . | . . . . Parts Built . | . . . . Authchips . | . . . . Time . | . . . . Total Part Build Rating . | . . . . Parts Repaired . | . . . . Time . | . . . . Parts Recycled . | . . . . Recycled Matter . | . . . . Retrieved Matter . | . . . . Retrieved Components . | . . . . Parts Scanalyzed . | . . . . Part Schematics Acquired . | . . . . Parts Damaged . | . . . . Bothacking | -11 -10 -10 -9 ------------ Run | Yrd Mat Min Mat Used RIF Installer . | . . . . Robots Hacked . | . . . . Non-combat . | . . . . Combat . | . . . . Robot Hacks Applied . | . . . . Relay Couplers Released . | . . . . Fabnet Peak Effective % . | . . . . Robots Rewired . | . . . . Allies Hacked . | . . . . Hacks Repelled . | . . . . Allies | -11 -10 -10 -9 -------- Run | Yrd Mat Min Mat Total Allies 2 | . . 2 . Largest Group 2 | . . 2 1 Highest-Rated Group 43 | . . 43 31 Highest-Rated Ally 31 | . . 31 31 Total Orders . | . . . . Ally Attacks 20 | . . 16 4 Total Damage 251 | . . 189 62 Kills 6 | . . 6 . Allies Corrupted . | . . . . Allies Melted . | . . . . Intel | -11 -10 -10 -9 ------- Run | Yrd Mat Min Mat Robot Analysis Total . | . . . . Derelict Logs Recovered 1 | . . 1 . Drone Launches . | . . . . Drone Recoveries . | . . . . Exploration | -11 -10 -10 -9 ------------- Run | Yrd Mat Min Mat Turns Passed 3636 | 1429 397 1350 460 Spaces Moved 1748 | 715 144 739 150 Core 15 | 5 . . 10 Treads 918 | 710 69 69 70 Legs 811 | . 75 670 66 Wheels . | . . . . Hover 4 | . . . 4 Flight . | . . . . Fastest Speed 50 | 50 120 120 120 Average Speed 170 | 159 141 174 229 Slowest Speed 600 | 160 190 240 600 Overloaded Moves . | . . . . Propulsion Burnouts . | . . . . Robots Hopped . | . . . . Cave-ins Triggered . | . . . . Exploration Rate (%) 48 | 47 31 98 17 Regions Visited 3 Branch Regions 1 Pre-discovered Areas 1 | . . 1 . Known Exits Taken 1 | . 1 . . Unknown Exits Taken 2 | 1 . 1 . Scrap Searched 1 | . . 1 . Spaces Dug 1 | 1 . . . Terrain Destroyed 1 | 1 . . . Melee . | . . . . Projectile 1 | 1 . . . AOE . | . . . . Terrain Rammed . | . . . . Walls Destroyed . | . . . . Machines Disabled . | . . . . Actions | -11 -10 -10 -9 --------- Run | Yrd Mat Min Mat Total 2184 | 958 225 790 211 Wait 198 | 198 . . . Move 1745 | 714 143 738 150 Hop . | . . . . Pick Up 45 | 12 9 16 8 Fast Attach 1 | 1 . . . Attach 26 | 6 6 1 13 Detach 1 | . . . 1 Swap 20 | 3 6 7 4 Drop 18 | 1 3 12 2 Fire 117 | 23 57 12 25 Melee 12 | . . 4 8 Ram . | . . . . Kick 1 | . 1 . . Crush . | . . . . Escape Stasis . | . . . . Rewire . | . . . . Trap . | . . . . Miscellaneous . | . . . . Route ------- -11/Scrapyard -10/Materials (discovered 3 exits: *Mat / *Min x2) -10/Mines (discovered 3 exits: *Mat x2 / [*Exi]) -9/Materials (discovered 1 exit: [*Min]) History --------- Turn | Location | Event 10 | -11/Scrapyard | Discovered new exit (range 15) 1430 | -11/Scrapyard | Entered Materials 1451 | -10/Materials | Build established: Mutant 1479 | -10/Materials | Identified exit to Mines 1619 | -10/Materials | Destroyed 8 combat bots 1788 | -10/Materials | Lost 3 parts (1u2w) 1823 | -10/Materials | Discovered new exit (range 10) 1827 | -10/Materials | Entered Mines 1846 | -10/Mines | Met a Derelict bent on vengeance 1930 | -10/Mines | A weapon hastily lodged in a ceiling crevice suddenly fell to the ground 1937 | -10/Mines | Learned location of Zion (-7) 2015 | -10/Mines | Core integrity fell below 50% 2035 | -10/Mines | Build established: Scavenger-Mutant 2151 | -10/Mines | Discovered new exit (range 15) 2337 | -10/Mines | Deemed a non-threat by the Exiles lab entrance 2337 | -10/Mines | Discovered new exit (range 5) 2531 | -10/Mines | Found a hidden stash of uninstalled traps 2685 | -10/Mines | Discovered new exit (range 8) 3039 | -10/Mines | Joined a pair of Derelicts in attacking an 0b10 outpost 3177 | -10/Mines | Entered Materials 3177 | -9/Materials | Accompanied by 1 ally 3177 | -9/Materials | Evolved 2 slots: Power x1, Utility x1 3179 | -9/Materials | Discovered new exit (range 14) 3182 | -9/Materials | Led the pair of lost Derelicts to an unsafe place 3375 | -9/Materials | Lost 8 parts (2p3n3w) 3586 | -9/Materials | Core integrity fell below 50% 3629 | -9/Materials | Core integrity fell below 20% 3637 | -9/Materials | Destroyed by Y-45 Defender with Heavy Assault Rifle Last Messages --------------- 03566_ Current location identified: Materials >>Alert(Check) Current Alert Level: Low Security >>Prototypes Downloading prototype IDs... Imp. Assault Rifle Prc. Beam Rifle 03600_ B-36 Bruiser destroyed. 03603_ G-34 Mercenary destroyed. 03603_ Switching to secondary target: Y-45 Defender. 03606_ Critical hit (Burn: +37). 03615_ Med. Matter Pod destroyed. 03616_ Carbon-fiber Leg destroyed. 03618_ Critical hit (Burn: +37). 03625_ Assault Rifle destroyed. 03627_ Lgt. Ion Engine destroyed. 03629_ Lgt. Nuclear Core destroyed. 03630_ Assault Rifle destroyed. 03634_ Critical hit (Burn: +37). 03636_ Imp. Hover Unit destroyed. Map ----- +----------------------------------------------------+ | ???????????????????????????????????? | | ???????????????????????????????????? | | ???????????????????????????????????? | | ???????????????????????????????????? | | ???????????????????????????????????? | | ???????????????????????????????????? | | ???????????????????????????????????? | | ???????????????????????????????????? | | ???????????????????????????????????? | | ???????????????????????????????????? | | ??????????????????????? ???????? | | ??????????????????????? ???????? | | ??????????????????????? ???????? | | ??????????????????????? Y ???????? | | ??????????????????????? Y ???????? | | ???????????????????????# #???????? | | ???????????????????????# #???????? | | ???????????????????????# #???????? | | ???????????????????????# #???????? | | ???????????????????????# ![#???????? | | ???????????????????????#a%g#???????? | | ???????????????????????# % #???????? | | ???????????????????????#Y #???????? | | ???????????????????????# #???????? | | ???????????????????????# #???????? | | ???????????????????????# @ #???????? | | ???????????????????????# #???????? | | ???????????????????????# #???????? | | ???????????????????????# ########? | | ???????????????????????# # #? | | ?????????????########### # ""#? | | ?????????????# # # T"#? | | ?????????????# # + ""#? | | ?????????????# """ """ # # #? | | ?????????????# """ """ + # #? | | ?????????????# """ """ # ########? | | ?????????????# ### #???????? | | ?????????????# #?# #???????? | | ?????????????# #?# #???????? | | ?????????????#########+#?# #???????? | | ?????????????????????# #?# #???????? | | ?????????????????????# ### ##??????? | | ??????????????######## ## ####???? | | ??????????????# + % % #???? | | ??????????????# [[ #### %## #???? | | ??????????????# [ #####+###?????? | | ??????????????# [ ## #?????? | | ??????????????# ## """ #?????? | | ??????????????# ## """% #?????? | | ??????????????######### """ #?????? | +----------------------------------------------------+ Best States ------------- Heat Dissipation 28 Energy Generation 19 Energy Capacity 275 Matter Stores 400 Matter Capacity 400 Sight Range 16 Robot Scan Range 14 Terrain Scan Range 16 Terrain Scan Density 10 Additional Mass Support 6 Utility Shielding 33 Evasion (%) 55 Recoil Reduction 2 Item Schematics ----------------- None Robot Schematics ------------------ None Fabricated ------------ Nothing Alien Tech Used ----------------- None Achievements -------------- None Challenges ------------ None Game ------ Seed AssaultBlastPendant Manual? 0 Play Time 00:28:58 Cumulative 3.0 hours Start 2024.03.31 @ 14:32:21 End 2024.03.31 @ 15:00:31 Sessions 1 Manual Loads 0 Difficulty Rogue Special Mode None Game No. 4 Rogue 4 Adventurer 0 Explorer 0 Win Type - Total 0 Types 0/0/0/0/0/0/0/0/0 Lore% 7 Gallery% 10 Achievement% 9 Wizard Run 0 Options --------- Layout 1 ASCII 0 Keyboard 0 Movement Mouse Keybinds 0 Fullscreen 1 Font 24/Smallcaps Map View 55x38 Zoom Use 0% Tactical HUD 1 Map Filters NONE Filters NONE Steam 1 RUN: 78df15c2-8744-416a-9caf-a1dffd9551ac